[Event "WYCC 2018 G14"]
[Site "Halkidiki"]
[Date "2018.10.20"]
[Round "1"]
[White "Nurgali, Nazerke"]
[Black "Gabbani, Sara"]
[Result "1-0"]
[ECO "D19"]
[WhiteElo "2263"]
[BlackElo "1764"]
[Annotator "NA"]
[PlyCount "83"]
[EventDate "2018.10.20"]
[EventType "swiss"]
[EventCountry "GRE"]
[SourceTitle "playchess.com"]
[Source "ChessBase"]
[SourceQuality "1"]
[TimeControl "40/5400+30:1800+30"]

1. d4 {[%emt 0:00:00]} d5 {[%emt 0:00:00]} 2. Nf3 {[%emt 0:00:00]} Nf6 {[%emt 0:00:00]} 3. c4 {[%emt 0:00:00]} c6 {[%emt 0:00:00]} 4. Nc3 {[%emt 0:00:15]} dxc4 {[%emt 0:00:10]} 5. a4 {[%emt 0:00:20]} Bf5 {[%emt 0:00:21]} 6. e3 {[%emt 0:00:34]} e6 {[%emt 0:00:52]} 7. Bxc4 {[%emt 0:00:35]} Bb4 {[%emt 0:00:36]} 8. O-O {[%emt 0:00:39]} O-O {[%emt 0:01:02]} 9. Qe2 {[%emt 0:01:34]} Bg4 {[%emt 0:01:21]} 10. h3 {[%emt 0:02:04]} Bh5 {[%emt 0:01:07]} 11. Rd1 {[%emt 0:08:20]} Nbd7 {[%emt 0:01:53]} 12. e4 {[%emt 0:01:02] D19: Slav Defence: 5 a4 Bf5 6 e3: Main line with 9 Qe2} Qe7 {[%emt 0:01:14]} (12... Re8 13. Bf4 Nd5 14. Bd2 Qa5 15. g4 Bg6 16. Rac1 N5b6 17. Bb3 Rac8 18. Na2 Bxd2 19. Qxd2 Qxd2 20. Nxd2 {1-0 (58) Korobov,A (2647)-Vallejo Pons,F (2707) Nakhchivan 2011}) 13. Bf4 {[%emt 0:06:06]} Bg6 {[%emt 0:11:15]} 14. Bd3 $146 {[%emt 0:04:32]} ({Predecessor:} 14. Bg5 e5 15. d5 Rfe8 {½-½ (15) Bombek,P (2219)-Zatko,G (2188) Slovakia 2013}) 14... Rfd8 {[%emt 0:07:54]} 15. Rac1 {[%emt 0:04:07]} Rac8 {[%emt 0:03:24]} 16. e5 {[%emt 0:10:41]} Nd5 {[%emt 0:01:56]} 17. Nxd5 {[%emt 0:00:21]} exd5 {[%emt 0:03:58]} 18. Bxg6 {[%emt 0:04:25]} hxg6 {[%emt 0:00:15]} 19. Qd3 {[%emt 0:00:12]} Nf8 {[%emt 0:14:08]} 20. Bg5 $14 {[%emt 0:01:56]} f6 {[%emt 0:00:51]} 21. Bh4 {[%emt 0:00:20]} g5 {[%emt 0:03:00]} 22. Bg3 {[%emt 0:00:38]} Ne6 {[%emt 0:04:11]} 23. Rc2 {[%emt 0:02:59]} Rf8 {[%emt 0:03:39]} 24. exf6 {[%emt 0:04:05]} gxf6 {[%emt 0:01:29]} 25. Nh2 {[%emt 0:01:37]} Qh7 {[%emt 0:02:39]} 26. Qb3 {[%emt 0:01:53]} a5 {[%emt 0:01:12]} 27. Re2 {[%emt 0:03:03]} Rce8 {[%emt 0:01:41]} 28. Qf3 {[%emt 0:01:38]} Qe7 {[%emt 0:05:56]} 29. Kf1 {[%emt 0:04:42]} Qh7 {[%emt 0:02:36]} 30. Qb3 {[%emt 0:03:05]} Nxd4 {[%emt 0:05:58]} 31. Rxd4 {[%emt 0:00:52]} Rxe2 {[%emt 0:00:06]} 32. Kxe2 {[%emt 0:01:31]} Re8+ {[%emt 0:00:07]} 33. Kf3 {[%emt 0:01:44]} Qf5+ {[%emt 0:00:07]} 34. Bf4 {[%emt 0:00:14]} gxf4 {[%emt 0:01:14]} 35. Rxf4 {[%emt 0:06:38]} Qh5+ {[%emt 0:00:51]} 36. Ng4 {[%emt 0:04:26]} f5 {[%emt 0:02:41]} 37. Kg3 {[%emt 0:04:08]} Qg5 {[%emt 0:02:59]} 38. Rxf5 {[%emt 0:02:02]} Qg6 {[%emt 0:04:26]} 39. Kh2 {[%emt 0:01:27]} Re6 {[%emt 0:02:17]} 40. Qf3 {[%emt 0:00:00]} Bd6+ {[%emt 0:00:00]} 41. g3 {[%emt 0:01:53]} Re1 {[%emt 0:02:16]} 42. Rf6 {[%emt 0:03:06]} 1-0

[Event "WYCC 2018 G14"]
[Site "Halkidiki"]
[Date "2018.10.20"]
[Round "1"]
[White "Caglar, Sila"]
[Black "Vuong, Quynh Anh"]
[Result "1/2-1/2"]
[ECO "B10"]
[WhiteElo "2184"]
[BlackElo "1747"]
[Annotator "NA"]
[PlyCount "114"]
[EventDate "2018.10.20"]
[EventType "swiss"]
[EventCountry "GRE"]
[SourceTitle "playchess.com"]
[Source "ChessBase"]
[SourceQuality "1"]
[TimeControl "40/5400+30:1800+30"]

1. e4 {[%emt 0:00:00]} c6 {[%emt 0:00:00]} 2. c4 {[%emt 0:00:00]} d5 {[%emt 0:00:00]} 3. exd5 {[%emt 0:00:00]} cxd5 {[%emt 0:00:03]} 4. cxd5 {[%emt 0:00:01]} Nf6 {[%emt 0:01:19]} 5. Nc3 {[%emt 0:00:12]} Nxd5 {[%emt 0:00:29]} 6. Nf3 {[%emt 0:00:05]} Nxc3 {[%emt 0:01:35]} 7. bxc3 {[%emt 0:00:12]} Nc6 {[%emt 0:00:55]} 8. d4 {[%emt 0:01:13]} e6 {[%emt 0:01:02]} 9. Bd3 {[%emt 0:02:02]} Be7 {[%emt 0:04:57]} 10. O-O {[%emt 0:05:57]} h6 $16 {[%emt 0:04:07]} 11. Qe2 {[%emt 0:01:23]} Nb8 {[%emt 0:32:39]} 12. Ne5 {[%emt 0:04:23]} Nd7 {[%emt 0:02:37]} 13. Re1 {[%emt 0:06:33]} Nxe5 {[%emt 0:08:26]} 14. dxe5 {[%emt 0:01:06]} Bd7 {[%emt 0:05:32]} 15. Qg4 {[%emt 0:05:09]} Qc7 {[%emt 0:02:37]} 16. Be3 {[%emt 0:24:57]} Bc5 {[%emt 0:09:04]} 17. Qc4 {[%emt 0:09:18]} Rc8 {[%emt 0:01:15]} 18. Qf4 {[%emt 0:06:52]} Bxe3 {[%emt 0:07:10]} 19. Rxe3 {[%emt 0:00:23]} Qxc3 {[%emt 0:02:46]} 20. Rf1 {[%emt 0:00:57]} Qc5 {[%emt 0:00:39]} 21. Rg3 {[%emt 0:02:33]} Qf8 {[%emt 0:00:46]} 22. h3 {[%emt 0:01:25]} Bc6 {[%emt 0:00:42]} 23. Qd4 {[%emt 0:02:38]} a6 {[%emt 0:02:53]} 24. Rc1 {[%emt 0:08:19]} Rd8 {[%emt 0:00:44]} 25. Qc3 {[%emt 0:01:48]} Bd7 {[%emt 0:01:04]} 26. Qb3 {[%emt 0:00:54]} Rc8 {[%emt 0:02:10]} 27. Rd1 {[%emt 0:01:19]} Bc6 {[%emt 0:00:05]} 28. Bc4 {[%emt 0:00:13]} Qe7 {[%emt 0:01:18]} 29. Rxg7 {[%emt 0:01:35]} Kf8 {[%emt 0:00:05]} 30. Rg4 {[%emt 0:02:25]} Rg8 {[%emt 0:00:13]} 31. Rdd4 {[%emt 0:00:48]} Rg5 {[%emt 0:00:48]} 32. Qe3 {[%emt 0:02:08]} Rd8 {[%emt 0:01:32]} 33. Rdf4 {[%emt 0:01:15]} b5 {[%emt 0:00:41]} 34. Bb3 {[%emt 0:00:56]} Bd5 {[%emt 0:01:19]} 35. Rf6 {[%emt 0:02:18]} Rxg4 {[%emt 0:00:51]} 36. hxg4 {[%emt 0:00:10]} Bxb3 {[%emt 0:00:08]} 37. Rxh6 {[%emt 0:01:17]} Kg7 {[%emt 0:02:24]} 38. axb3 {[%emt 0:00:41]} Rg8 {[%emt 0:00:06]} 39. Rf6 {[%emt 0:00:59]} Kf8 {[%emt 0:00:06]} 40. g5 {[%emt 0:00:00]} Qc7 {[%emt 0:00:00]} 41. Qf4 {[%emt 0:01:16]} Ke8 {[%emt 0:00:31]} 42. g3 {[%emt 0:02:55]} Qb7 {[%emt 0:03:42]} 43. Qh4 {[%emt 0:01:31]} Qd7 {[%emt 0:01:19]} 44. Qh5 {[%emt 0:04:03]} a5 {[%emt 0:01:01]} 45. Kh2 {[%emt 0:02:30]} a4 {[%emt 0:03:32]} 46. bxa4 {[%emt 0:03:58]} bxa4 {[%emt 0:00:03]} 47. Qh7 {[%emt 0:00:33]} Rg6 {[%emt 0:14:09]} 48. Rf3 {[%emt 0:11:34]} Qa7 {[%emt 0:01:25]} 49. Qh8+ {[%emt 0:01:16]} Ke7 {[%emt 0:00:15]} 50. Rxf7+ {[%emt 0:01:37]} Kxf7 {[%emt 0:00:27]} 51. Qh7+ {[%emt 0:00:04]} Rg7 {[%emt 0:00:18]} 52. g6+ {[%emt 0:00:06]} Kf8 {[%emt 0:00:43]} 53. Qh8+ {[%emt 0:00:18]} Rg8 {[%emt 0:00:12]} 54. Qf6+ {[%emt 0:00:07]} Ke8 {[%emt 0:00:06]} 55. Qxe6+ {[%emt 0:00:10]} Kf8 {[%emt 0:00:06]} 56. Qf6+ {[%emt 0:03:16]} Ke8 {[%emt 0:00:07]} 57. Qe6+ {[%emt 0:01:07]} Kf8 {[%emt 0:00:05]} 1/2-1/2

[Event "WYCC 2018 G14"]
[Site "Halkidiki"]
[Date "2018.10.20"]
[Round "1"]
[White "Song, Yuxin"]
[Black "Kurmangaliyeva, Liya"]
[Result "1-0"]
[ECO "B24"]
[WhiteElo "2178"]
[BlackElo "1733"]
[Annotator "NA"]
[PlyCount "53"]
[EventDate "2018.10.20"]
[EventType "swiss"]
[EventCountry "GRE"]
[SourceTitle "playchess.com"]
[Source "ChessBase"]
[SourceQuality "1"]
[TimeControl "40/5400+30:1800+30"]

1. e4 {[%emt 0:00:00]} c5 {[%emt 0:00:00]} 2. Nc3 {[%emt 0:00:00]} Nc6 {[%emt 0:00:00]} 3. Nf3 {[%emt 0:02:05]} e5 {[%emt 0:05:15]} 4. Bc4 {[%emt 0:00:33]} d6 {[%emt 0:07:15]} 5. d3 {[%emt 0:03:10]} h6 {[%emt 0:00:44]} 6. O-O {[%emt 0:01:30]} Nf6 {[%emt 0:01:51]} 7. a3 {[%emt 0:03:41]} Be7 {[%emt 0:01:57]} 8. h3 {[%emt 0:00:17]} O-O {[%emt 0:00:49]} 9. Be3 {[%emt 0:04:44]} a6 {[%emt 0:04:06]} 10. Nd2 {[%emt 0:06:12]} Be6 {[%emt 0:14:09]} 11. f4 {[%emt 0:05:08]} exf4 $11 {[%emt 0:02:24]} 12. Bxf4 {[%emt 0:00:35]} d5 {[%emt 0:02:55]} 13. exd5 {[%emt 0:08:05]} Nxd5 {[%emt 0:02:02]} 14. Nxd5 {[%emt 0:01:06]} Bxd5 {[%emt 0:00:12]} 15. Qg4 {[%emt 0:00:53]} Bxc4 {[%emt 0:06:57]} 16. Nxc4 {[%emt 0:00:19]} Qd4+ {[%emt 0:11:08]} 17. Kh1 {[%emt 0:03:12]} Rad8 {[%emt 0:03:13]} 18. Rad1 {[%emt 0:04:19]} b5 {[%emt 0:17:44]} 19. Ne3 {[%emt 0:01:15]} Ne5 {[%emt 0:05:29]} 20. Bxe5 {[%emt 0:01:15]} Qxe5 {[%emt 0:00:07]} 21. Nf5 {[%emt 0:01:20]} Bg5 {[%emt 0:00:56]} 22. h4 {[%emt 0:01:37]} Bf6 {[%emt 0:00:28]} 23. d4 {[%emt 0:08:39]} cxd4 {[%emt 0:02:57]} 24. Rde1 {[%emt 0:00:06]} Qd5 {[%emt 0:02:46]} 25. Nxh6+ {[%emt 0:02:34]} Kh7 {[%emt 0:00:18]} 26. Rxf6 {[%emt 0:00:25]} gxf6 {[%emt 0:01:15]} 27. Nf5 {[%emt 0:00:08]} 1-0

[Event "WYCC 2018 G14"]
[Site "Halkidiki"]
[Date "2018.10.20"]
[Round "1"]
[White "Galvan Cipriani, Viviana"]
[Black "Yedigaryan, Asya"]
[Result "1-0"]
[ECO "A21"]
[WhiteElo "2109"]
[BlackElo "1726"]
[Annotator "NA"]
[PlyCount "61"]
[EventDate "2018.10.20"]
[EventType "swiss"]
[EventCountry "GRE"]
[SourceTitle "playchess.com"]
[Source "ChessBase"]
[SourceQuality "1"]
[TimeControl "40/5400+30:1800+30"]

1. c4 e5 2. Nc3 c5 3. g3 Nc6 4. Bg2 g6 5. e3 Bg7 6. Nge2 Nge7 7. a3 O-O 8. O-O d6 9. Rb1 f5 10. d3 g5 11. f4 gxf4 12. exf4 a5 13. Be3 Rb8 14. fxe5 Nxe5 15. b4 Ng4 16. Bd2 cxb4 17. axb4 Nc6 18. h3 Nge5 $18 (18... axb4 $16 19. Nd5 (19. hxg4 bxc3 20. Bxc3 Bxc3 $14) 19... Nge5) 19. bxa5 Nxa5 20. Nb5 Nac6 21. Nf4 Ng6 22. Nh5 Be5 23. Bd5+ Kh8 24. Bh6 Re8 25. d4 Bf6 26. g4 Rg8 27. Bxg8 Kxg8 28. gxf5 Nh4 29. Qg4+ Kf7 30. Nxf6 Qxf6 31. Bg5 1-0

[Event "WYCC 2018 G14"]
[Site "Halkidiki"]
[Date "2018.10.20"]
[Round "1"]
[White "Krasteva, Beloslava"]
[Black "Villanyi, Alexia"]
[Result "1-0"]
[ECO "E93"]
[WhiteElo "2089"]
[BlackElo "1709"]
[Annotator "NA"]
[PlyCount "77"]
[EventDate "2018.10.20"]
[EventType "swiss"]
[EventCountry "GRE"]
[SourceTitle "playchess.com"]
[Source "ChessBase"]
[SourceQuality "1"]
[TimeControl "40/5400+30:1800+30"]

1. d4 {[%emt 0:00:00]} Nf6 {[%emt 0:00:00]} 2. c4 {[%emt 0:00:00]} g6 {[%emt 0:00:00]} 3. Nc3 {[%emt 0:00:02]} Bg7 {[%emt 0:00:21]} 4. e4 {[%emt 0:00:15]} d6 {[%emt 0:01:00]} 5. Nf3 {[%emt 0:00:17]} O-O {[%emt 0:00:39]} 6. Be2 {[%emt 0:00:11]} e5 {[%emt 0:01:23]} 7. d5 {[%emt 0:00:13]} Nbd7 {[%emt 0:01:03]} 8. Be3 {[%emt 0:00:57]} Nc5 {[%emt 0:03:43]} 9. Nd2 {[%emt 0:00:29]} a5 {[%emt 0:01:41]} 10. a3 {[%emt 0:01:03]} b6 {[%emt 0:15:03] E93: King's Indian: Classical: Petrosian System with 7...Nbd7} (10... Bd7 11. b4 axb4 12. axb4 Na6 13. Rb1 c6 14. O-O cxd5 15. cxd5 Nc7 16. b5 Kh8 17. Nc4 Nce8 18. Ra1 {1-0 (82) Wojtaszek,R (2715)-Fier,A (2580) Dubai 2014}) 11. b4 {[%emt 0:03:30]} Ncd7 {[%emt 0:01:04]} 12. O-O {[%emt 0:03:03]} axb4 $146 {[%emt 0:11:16]} ({Predecessor:} 12... Ne8 13. Nb3 f5 14. f3 f4 15. Bf2 g5 16. c5 a4 17. Nd2 bxc5 18. Nxa4 cxb4 19. axb4 {1-0 (48) Sinkovics,P (2410)-Klemanic,E (2220) Sarospatak 1995}) 13. axb4 {[%emt 0:00:23]} Bb7 {[%emt 0:00:28]} 14. Qb3 {[%emt 0:03:37]} Qe7 {[%emt 0:01:49]} 15. Nb5 {[%emt 0:14:38]} Rfc8 {[%emt 0:14:21]} 16. Rxa8 {[%emt 0:09:50]} Bxa8 {[%emt 0:00:06]} 17. Ra1 {[%emt 0:00:39]} Qd8 {[%emt 0:06:09]} 18. Ra7 {[%emt 0:05:35]} Ne8 {[%emt 0:05:31]} 19. Bg4 {[%emt 0:08:14]} Rb8 {[%emt 0:10:03]} 20. Qa4 {[%emt 0:03:27]} Ndf6 {[%emt 0:02:59]} 21. Be2 $16 {[%emt 0:02:28]} Bb7 {[%emt 0:01:37]} 22. f3 {[%emt 0:07:41]} Nh5 {[%emt 0:03:34]} 23. c5 {[%emt 0:03:40]} bxc5 {[%emt 0:00:31]} 24. bxc5 {[%emt 0:00:11]} Nf4 {[%emt 0:03:01]} 25. Bxf4 {[%emt 0:02:31]} exf4 {[%emt 0:00:06]} 26. c6 {[%emt 0:00:21]} Bc8 {[%emt 0:00:32]} 27. Ra8 {[%emt 0:02:29]} Rxa8 {[%emt 0:05:40]} 28. Qxa8 {[%emt 0:00:04]} Kf8 {[%emt 0:01:16]} 29. Nb3 {[%emt 0:09:12]} f5 {[%emt 0:05:56]} 30. Bf1 {[%emt 0:05:32]} fxe4 {[%emt 0:02:17]} 31. Na7 {[%emt 0:02:58]} Qh4 {[%emt 0:00:14]} 32. Nxc8 {[%emt 0:01:41]} exf3 {[%emt 0:01:17]} 33. Qa2 {[%emt 0:05:15]} Qg4 {[%emt 0:00:55]} 34. Na7 {[%emt 0:00:28]} Qg5 {[%emt 0:00:21]} 35. Qd2 {[%emt 0:00:42]} Nf6 {[%emt 0:00:13]} 36. Nd4 {[%emt 0:01:09]} Kg8 {[%emt 0:00:53]} 37. Nxf3 {[%emt 0:00:26]} Qf5 {[%emt 0:00:44]} 38. Nb5 {[%emt 0:00:43]} Ne4 {[%emt 0:00:25]} 39. Qc2 {[%emt 0:01:52]} 1-0

[Event "WYCC 2018 G14"]
[Site "Halkidiki"]
[Date "2018.10.20"]
[Round "1"]
[White "Jyothsna L"]
[Black "Kostina, Veronika"]
[Result "1-0"]
[ECO "A46"]
[WhiteElo "2060"]
[BlackElo "1700"]
[Annotator "NA"]
[PlyCount "61"]
[EventDate "2018.10.20"]
[EventType "swiss"]
[EventCountry "GRE"]
[SourceTitle "playchess.com"]
[Source "ChessBase"]
[SourceQuality "1"]
[TimeControl "40/5400+30:1800+30"]

1. d4 {[%emt 0:00:46]} Nf6 {[%emt 0:00:29]} 2. Nf3 {[%emt 0:00:18]} e6 {[%emt 0:01:18]} 3. c4 {[%emt 0:00:16]} c5 {[%emt 0:03:08]} 4. d5 {[%emt 0:02:47]} d6 {[%emt 0:14:20]} 5. Nc3 {[%emt 0:01:11]} e5 {[%emt 0:08:46]} 6. e4 {[%emt 0:01:04]} Be7 {[%emt 0:04:46]} 7. Bd3 {[%emt 0:03:09]} O-O $16 {[%emt 0:08:42]} 8. h3 {[%emt 0:19:45]} Na6 {[%emt 0:06:10]} 9. Ne2 {[%emt 0:06:47]} Nb4 {[%emt 0:07:15]} 10. Bb1 {[%emt 0:02:44]} Bd7 {[%emt 0:04:42]} 11. a3 {[%emt 0:08:25]} Na6 {[%emt 0:02:41]} 12. Bd3 {[%emt 0:06:00]} Qe8 {[%emt 0:13:30]} 13. Nc3 {[%emt 0:01:19]} Nc7 {[%emt 0:04:51]} 14. a4 {[%emt 0:01:34]} Na6 15. O-O {[%emt 0:01:35]} Nb4 {[%emt 0:03:02]} 16. Bb1 {[%emt 0:01:39]} Qc8 {[%emt 0:04:08]} 17. Nh2 {[%emt 0:02:20]} Re8 {[%emt 0:03:28]} 18. f4 {[%emt 0:01:17]} Bf8 {[%emt 0:01:36]} 19. f5 {[%emt 0:09:58]} Kh8 {[%emt 0:02:55]} 20. g4 {[%emt 0:01:59]} Ng8 {[%emt 0:02:28]} 21. g5 {[%emt 0:05:31]} g6 {[%emt 0:01:24]} 22. Qg4 {[%emt 0:01:24]} Bg7 {[%emt 0:00:49]} 23. Qh4 {[%emt 0:01:30]} Qd8 {[%emt 0:00:29]} 24. Ne2 {[%emt 0:02:23]} h5 {[%emt 0:00:29]} 25. f6 {[%emt 0:00:50]} Bf8 {[%emt 0:00:17]} 26. Ng3 {[%emt 0:00:23]} Qc8 {[%emt 0:00:46]} 27. Nxh5 {[%emt 0:03:11]} gxh5 {[%emt 0:00:02]} 28. Qxh5+ {[%emt 0:00:03]} Nh6 29. gxh6 {[%emt 0:01:06]} Bxh3 {[%emt 0:01:27]} 30. Rf3 {[%emt 0:00:21]} Bd7 {[%emt 0:00:11]} 31. h7 {[%emt 0:00:32]} 1-0

[Event "WYCC 2018 G14"]
[Site "Halkidiki"]
[Date "2018.10.20"]
[Round "1"]
[White "Mironenko, Galina"]
[Black "Mocanu, Paula"]
[Result "1/2-1/2"]
[ECO "D02"]
[WhiteElo "2053"]
[BlackElo "1680"]
[Annotator "NA"]
[PlyCount "52"]
[EventDate "2018.10.20"]
[EventType "swiss"]
[EventCountry "GRE"]
[SourceTitle "playchess.com"]
[Source "ChessBase"]
[SourceQuality "1"]
[TimeControl "40/5400+30:1800+30"]

1. d4 {[%emt 0:00:00]} d5 {[%emt 0:00:00]} 2. Nf3 {[%emt 0:00:00]} Nf6 {[%emt 0:00:00]} 3. g3 {[%emt 0:00:00]} e6 {[%emt 0:00:01]} 4. Bg2 {[%emt 0:00:00]} Bb4+ {[%emt 0:00:39]} 5. c3 {[%emt 0:00:45]} Be7 {[%emt 0:00:10]} 6. O-O {[%emt 0:00:09]} O-O {[%emt 0:00:14]} 7. c4 {[%emt 0:00:36]} b6 {[%emt 0:00:52]} 8. cxd5 {[%emt 0:00:21]} exd5 {[%emt 0:00:27]} 9. Nc3 {[%emt 0:00:13]} Bb7 {[%emt 0:01:02]} 10. Ne5 {[%emt 0:00:22]} Na6 {[%emt 0:01:43]} 11. Bg5 {[%emt 0:02:49]} h6 {[%emt 0:07:47]} 12. Bf4 {[%emt 0:00:30]} c5 {[%emt 0:02:05]} 13. Rc1 {[%emt 0:01:00]} Nc7 {[%emt 0:00:36]} 14. dxc5 {[%emt 0:06:28]} bxc5 {[%emt 0:00:29]} 15. Qa4 {[%emt 0:04:18]} Ne6 $11 {[%emt 0:04:54]} 16. Rfd1 {[%emt 0:07:14]} Nxf4 {[%emt 0:22:53]} 17. gxf4 {[%emt 0:10:02]} Bd6 {[%emt 0:27:50]} 18. Nxd5 {[%emt 0:14:31]} Bxe5 {[%emt 0:03:58]} 19. Nxf6+ {[%emt 0:02:08]} Qxf6 {[%emt 0:00:15]} 20. fxe5 {[%emt 0:02:47]} Qg5 {[%emt 0:01:40]} 21. e4 {[%emt 0:01:19]} Qxe5 {[%emt 0:00:41]} 22. Qb5 {[%emt 0:02:24]} Rab8 {[%emt 0:04:27]} 23. Rxc5 {[%emt 0:02:53]} Qf6 {[%emt 0:04:18]} 24. Qa5 {[%emt 0:09:43]} Qxb2 {[%emt 0:02:05]} 25. Rb5 {[%emt 0:04:38]} Qe2 {[%emt 0:09:48]} 26. Rdb1 {[%emt 0:03:06]} Rfd8 {[%emt 0:00:44]} 1/2-1/2

[Event "WYCC 2018 G14"]
[Site "Halkidiki"]
[Date "2018.10.20"]
[Round "1"]
[White "Wikar, Martyna"]
[Black "Hernandez Guerra, Luna Yue"]
[Result "1-0"]
[ECO "A85"]
[WhiteElo "2024"]
[BlackElo "1659"]
[Annotator "NA"]
[PlyCount "159"]
[EventDate "2018.10.20"]
[EventType "swiss"]
[EventCountry "GRE"]
[SourceTitle "playchess.com"]
[Source "ChessBase"]
[SourceQuality "1"]
[TimeControl "40/5400+30:1800+30"]

1. d4 {[%emt 0:00:00]} f5 {[%emt 0:00:00]} 2. c4 {[%emt 0:00:00]} Nf6 {[%emt 0:00:00]} 3. Nc3 {[%emt 0:00:00]} d6 {[%emt 0:00:00]} 4. Nf3 {[%emt 0:02:11]} g6 {[%emt 0:00:20]} 5. Bg5 {[%emt 0:03:46]} Bg7 {[%emt 0:02:51]} 6. e3 {[%emt 0:02:28]} O-O {[%emt 0:04:33]} 7. Bd3 {[%emt 0:02:54]} c6 {[%emt 0:01:24] A85: Holländische Verteidigung} (7... Nbd7 8. d5 Ng4 9. Nd4 Nc5 10. Be2 Ne5 11. f4 Nf7 12. Bh4 a5 13. O-O Bd7 14. Bf3 Qe8 15. Re1 {½-½ (50) Toth,E (2392)-Nemeth,M (2469) Hungary 2010}) 8. Qc2 {[%emt 0:05:49]} Qc7 {[%emt 0:04:19]} 9. O-O-O $146 {[%emt 0:08:35]} ({Vorgänger:} 9. Be2 e5 10. Bxf6 Bxf6 11. h4 a6 12. O-O-O e4 13. Nd2 Be6 14. g4 Qe7 15. gxf5 gxf5 16. h5 Nd7 17. Kb1 Kh8 18. Nf1 {½-½ (18) Szatmary,R (2161)-Csukerda,A (2131) Hungary 2003}) 9... Bd7 {[%emt 0:05:55]} 10. h4 {[%emt 0:03:18]} e6 {[%emt 0:12:03]} 11. Bxf6 {[%emt 0:03:05]} Bxf6 {[%emt 0:01:17]} 12. h5 {[%emt 0:02:26]} g5 {[%emt 0:06:26]} 13. g4 {[%emt 0:03:28]} Na6 {[%emt 0:03:56]} 14. a3 {[%emt 0:02:04]} Rae8 {[%emt 0:07:54]} 15. gxf5 {[%emt 0:08:53]} exf5 {[%emt 0:00:49]} 16. Rdg1 {[%emt 0:03:59]} h6 {[%emt 0:02:46]} 17. Nh4 {[%emt 0:01:07]} Bg7 {[%emt 0:12:41]} 18. Nxf5 {[%emt 0:01:17]} Bxf5 {[%emt 0:00:40]} 19. Bxf5 {[%emt 0:00:10]} Qe7 {[%emt 0:02:53]} 20. Bg6 {[%emt 0:03:12]} Rc8 {[%emt 0:01:30]} 21. Rg4 {[%emt 0:07:24]} d5 {[%emt 0:03:48]} 22. Qe2 {[%emt 0:05:53]} Nb8 {[%emt 0:05:52]} 23. Kb1 {[%emt 0:02:03]} Qe6 {[%emt 0:01:39]} 24. Rhg1 {[%emt 0:03:25]} Nd7 {[%emt 0:02:05]} 25. f4 {[%emt 0:11:53]} Nf6 {[%emt 0:01:38]} 26. R4g3 {[%emt 0:12:23]} gxf4 {[%emt 0:03:13]} 27. exf4 {[%emt 0:02:45]} Qxe2 {[%emt 0:00:21]} 28. Nxe2 {[%emt 0:01:07]} Rc7 {[%emt 0:00:46]} 29. b3 {[%emt 0:01:44]} Re7 {[%emt 0:01:18]} 30. R1g2 {[%emt 0:00:28]} Rd8 {[%emt 0:00:50]} 31. Kc2 {[%emt 0:00:49]} Kf8 {[%emt 0:01:12]} 32. Kd3 {[%emt 0:01:46]} Rdd7 {[%emt 0:03:24]} 33. Re3 {[%emt 0:01:48]} Bh8 {[%emt 0:01:50]} 34. Rxe7 {[%emt 0:00:48]} Rxe7 {[%emt 0:00:36]} 35. Rg1 {[%emt 0:01:06]} Bg7 {[%emt 0:01:49]} 36. Nc3 {[%emt 0:01:40]} Bh8 {[%emt 0:02:37]} 37. cxd5 {[%emt 0:02:12]} Nxd5 {[%emt 0:00:22]} 38. Nxd5 {[%emt 0:00:23]} cxd5 {[%emt 0:00:06]} 39. Rc1 {[%emt 0:00:57]} Bf6 {[%emt 0:01:11]} 40. Rc5 {[%emt 0:00:00]} Rd7 {[%emt 0:00:00]} 41. Bf5 {[%emt 0:05:48]} Rd8 {[%emt 0:01:51]} 42. Rc7 {[%emt 0:02:19]} Be7 {[%emt 0:03:30]} 43. Rxb7 {[%emt 0:02:26]} Bxa3 {[%emt 0:00:47]} 44. Rxa7 {[%emt 0:00:22]} Bd6 {[%emt 0:00:30]} 45. Be6 {[%emt 0:00:40]} Ke8 {[%emt 0:02:35]} 46. Bf7+ {[%emt 0:03:55]} Kf8 {[%emt 0:00:11]} 47. Bxd5 {[%emt 0:01:10]} Bxf4 {[%emt 0:01:25]} 48. Rf7+ {[%emt 0:00:10]} Ke8 {[%emt 0:00:13]} 49. Rxf4 {[%emt 0:00:08]} Rxd5 {[%emt 0:00:05]} 50. Rh4 {[%emt 0:00:22]} Kd7 {[%emt 0:00:26]} 51. Kc4 {[%emt 0:00:44]} Kd6 {[%emt 0:00:38]} 52. Rh1 {[%emt 0:01:41]} Rg5 {[%emt 0:00:30]} 53. Rh2 {[%emt 0:01:56]} Rf5 {[%emt 0:00:10]} 54. b4 {[%emt 0:00:39]} Kc6 {[%emt 0:00:13]} 55. Rg2 {[%emt 0:03:00]} Rxh5 {[%emt 0:00:40]} 56. Rg6+ {[%emt 0:00:12]} Kc7 {[%emt 0:00:09]} 57. b5 {[%emt 0:00:31]} Rh1 {[%emt 0:00:36]} 58. Kc5 {[%emt 0:00:54]} Rc1+ {[%emt 0:00:28]} 59. Kd5 {[%emt 0:01:10]} h5 {[%emt 0:00:36]} 60. Rh6 {[%emt 0:01:39]} Rb1 {[%emt 0:00:23]} 61. Rh7+ {[%emt 0:01:28]} Kb6 {[%emt 0:01:24]} 62. Kd6 {[%emt 0:00:50]} Rh1 {[%emt 0:04:35]} 63. d5 {[%emt 0:00:52]} h4 {[%emt 0:00:23]} 64. Ke7 {[%emt 0:03:38]} h3 {[%emt 0:02:45]} 65. d6 {[%emt 0:00:42]} h2 {[%emt 0:01:19]} 66. Kd7 {[%emt 0:01:01]} Kxb5 {[%emt 0:02:07]} 67. Rh3 {[%emt 0:01:15]} Kb4 {[%emt 0:00:48]} 68. Rh8 {[%emt 0:01:55]} Kb5 {[%emt 0:00:47]} 69. Rb8+ {[%emt 0:00:21]} Ka5 {[%emt 0:00:21]} 70. Rb2 {[%emt 0:00:39]} Ka4 {[%emt 0:00:36]} 71. Re2 {[%emt 0:01:31]} Kb5 {[%emt 0:02:21]} 72. Ke7 {[%emt 0:01:10]} Kc6 {[%emt 0:00:35]} 73. d7 {[%emt 0:01:01]} Rg1 {[%emt 0:02:36]} 74. d8=Q {[%emt 0:00:47]} Rg7+ {[%emt 0:01:18]} 75. Kf6 {[%emt 0:00:47]} h1=Q {[%emt 0:00:37]} 76. Re6+ {[%emt 0:00:29]} Kb5 {[%emt 0:01:38]} 77. Kxg7 {[%emt 0:00:14]} Qa1+ {[%emt 0:00:46]} 78. Qf6 {[%emt 0:00:41]} Qa7+ {[%emt 0:00:19]} 79. Re7 {[%emt 0:00:15]} Qg1+ {[%emt 0:00:15]} 80. Kf7 {[%emt 0:00:09]} 1-0